Workbook

Sheet 환불기준(2024-여름학기)
A1: 구분 | E1: 청연 계절(3인실) 23박 | F1: 청연 계절(장애인실) 23박 | G1: 청연 장기(3인실) 62박 | J1: 계절입사 | K1: 장기입사
A2: 24-여름학기 | D2: 1박 단가 | E2: 9890 | F2: 12060 | G2: 9890 | I2: 입사일 | J2: 2024-06-25 | K2: 2024-06-22
D3: 입사비 | E3: =E2*J4 -> 227470 | F3: =F2*J4 -> 277380 | G3: =G2*K4 -> 613180 | I3: 퇴사일 | J3: 2024-07-18 | K3: 2024-08-23
D4: 위약금 | E4: =E3*0.2 -> 45494 | F4: 55476 | G4: 122636 | I4: 사용일(박) | J4: =J3-J2 -> 23 | K4: =K3-K2 -> 62
B5: 계절 | C5: 장기 | D5: 위약금 (절상) | E5: =ROUNDDOWN(E4,-1) -> 45490 | F5: 55470 | G5: 122630
A6: 장기입사일 | C6: 1 | D6: 2024-06-22 | G6: =G3-G5 -> 490550
C7: 2 | D7: 2024-06-23 | G7: =G6-$G$2 -> 480660
C8: 3 | D8: 2024-06-24 | G8: =G7-$G$2 -> 470770
A9: 계절입사일 | C9: 4 | D9: 2024-06-25 | E9: =E3-E5 -> 181980 | F9: =F3-F5 -> 221910 | G9: 460880
B10: 1 | C10: 5 | D10: 2024-06-26 | E10: =E9-$E$2 -> 172090 | F10: =F9-$F$2 -> 209850 | G10: 450990
B11: 2 | C11: 6 | D11: 2024-06-27 | E11: =E10-$E$2 -> 162200 | F11: =F10-$F$2 -> 197790 | G11: 441100
B12: 3 | C12: 7 | D12: 2024-06-28 | E12: 152310 | F12: 185730 | G12: 431210
B13: 4 | C13: 8 | D13: 2024-06-29 | E13: 142420 | F13: 173670 | G13: 421320
B14: 5 | C14: 9 | D14: 2024-06-30 | E14: 132530 | F14: 161610 | G14: 411430
B15: 6 | C15: 10 | D15: 2024-07-01 | E15: 122640 | F15: 149550 | G15: 401540
B16: 7 | C16: 11 | D16: 2024-07-02 | E16: 112750 | F16: 137490 | G16: 391650
B17: 8 | C17: 12 | D17: 2024-07-03 | E17: 102860 | F17: 125430 | G17: 381760
B18: 9 | C18: 13 | D18: 2024-07-04 | E18: 92970 | F18: 113370 | G18: 371870
B19: 10 | C19: 14 | D19: 2024-07-05 | E19: 83080 | F19: 101310 | G19: 361980
B20: 11 | C20: 15 | D20: 2024-07-06 | E20: 73190 | F20: 89250 | G20: 352090
B21: 12 | C21: 16 | D21: 2024-07-07 | E21: 63300 | F21: 77190 | G21: 342200
B22: 13 | C22: 17 | D22: 2024-07-08 | E22: 53410 | F22: 65130 | G22: 332310
B23: 14 | C23: 18 | D23: 2024-07-09 | E23: 43520 | F23: 53070 | G23: 322420
B24: 15 | C24: 19 | D24: 2024-07-10 | E24: 33630 | F24: 41010 | G24: 312530
B25: 16 | C25: 20 | D25: 2024-07-11 | E25: 23740 | F25: 28950 | G25: 302640
B26: 17 | C26: 21 | D26: 2024-07-12 | E26: 13850 | F26: 16890 | G26: 292750
A27: 계절입사비 환불기한(23박*80%) | B27: 18 | C27: 22 | D27: 2024-07-13 | E27: 3960 | F27: 4830 | G27: 282860
B28: 19 | C28: 23 | D28: 2024-07-14 | E28: -5930 | F28: -7230 | G28: 272970
B29: 20 | C29: 24 | D29: 2024-07-15 | E29: -15820 | F29: -19290 | G29: 263080
B30: 21 | C30: 25 | D30: 2024-07-16 | E30: -25710 | F30: -31350 | G30: 253190
B31: 22 | C31: 26 | D31: 2024-07-17 | E31: -35600 | F31: -43410 | G31: 243300
A32: 계절퇴사일 | B32: 23 | C32: 27 | D32: 2024-07-18 | E32: -45490 | F32: -55470 | G32: 233410
C33: 28 | D33: 2024-07-19 | E33: -55380 | F33: -67530 | G33: 223520
C34: 29 | D34: 2024-07-20 | E34: -65270 | F34: -79590 | G34: 213630
C35: 30 | D35: 2024-07-21 | E35: -75160 | F35: -91650 | G35: 203740
C36: 31 | D36: 2024-07-22 | E36: -85050 | F36: -103710 | G36: 193850
C37: 32 | D37: 2024-07-23 | E37: -94940 | F37: -115770 | G37: 183960
C38: 33 | D38: 2024-07-24 | E38: -104830 | F38: -127830 | G38: 174070
C39: 34 | D39: 2024-07-25 | E39: -114720 | F39: -139890 | G39: 164180
C40: 35 | D40: 2024-07-26 | E40: -124610 | F40: -151950 | G40: 154290
C41: 36 | D41: 2024-07-27 | E41: -134500 | F41: -164010 | G41: 144400
C42: 37 | D42: 2024-07-28 | E42: -144390 | F42: -176070 | G42: 134510
C43: 38 | D43: 2024-07-29 | E43: -154280 | F43: -188130 | G43: 124620
C44: 39 | D44: 2024-07-30 | E44: -164170 | F44: -200190 | G44: 114730
C45: 40 | D45: 2024-07-31 | E45: -174060 | F45: -212250 | G45: 104840
C46: 41 | D46: 2024-08-01 | E46: -183950 | F46: -224310 | G46: 94950
C47: 42 | D47: 2024-08-02 | E47: -193840 | F47: -236370 | G47: 85060
C48: 43 | D48: 2024-08-03 | E48: -203730 | F48: -248430 | G48: 75170
C49: 44 | D49: 2024-08-04 | E49: -213620 | F49: -260490 | G49: 65280
C50: 45 | D50: 2024-08-05 | E50: -223510 | F50: -272550 | G50: 55390
C51: 46 | D51: 2024-08-06 | E51: -233400 | F51: -284610 | G51: 45500
C52: 47 | D52: 2024-08-07 | E52: -243290 | F52: -296670 | G52: 35610
C53: 48 | D53: 2024-08-08 | E53: -253180 | F53: -308730 | G53: 25720
C54: 49 | D54: 2024-08-09 | E54: -263070 | F54: -320790 | G54: 15830
A55: 장기입사비 환불기한(62박*80%) | C55: 50 | D55: 2024-08-10 | E55: -272960 | F55: -332850 | G55: 5940
C56: 51 | D56: 2024-08-11 | E56: -282850 | F56: -344910 | G56: -3950
C57: 52 | D57: 2024-08-12 | E57: -292740 | F57: -356970 | G57: -13840
C58: 53 | D58: 2024-08-13 | E58: -302630 | F58: -369030 | G58: -23730
C59: 54 | D59: 2024-08-14 | E59: -312520 | F59: -381090 | G59: -33620
C60: 55 | D60: 2024-08-15 | E60: -322410 | F60: -393150 | G60: -43510
C61: 56 | D61: 2024-08-16 | E61: -332300 | F61: -405210 | G61: -53400
C62: 57 | D62: 2024-08-17 | E62: -342190 | F62: -417270 | G62: -63290
C63: 58 | D63: 2024-08-18 | E63: -352080 | F63: -429330 | G63: -73180
C64: 59 | D64: 2024-08-19 | E64: -361970 | F64: -441390 | G64: -83070
D65: 2024-08-20 | E65: -371860 | F65: -453450 | G65: -92960
D66: 2024-08-21 | E66: -381750 | F66: -465510 | G66: -102850
D67: 2024-08-22 | E67: -391640 | F67: -477570 | G67: -112740
A68: 장기퇴사일 | D68: 2024-08-23 | E68: -401530 | F68: -489630 | G68: -122630
D69: 2024-08-24 | E69: -411420 | F69: -501690 | G69: -132520
A70: 24-2학기 입사일 | D70: 2024-08-25 | E70: -421310 | F70: -513750 | G70: -142410
